bitfinex-derivatives/quotes_ETHF0:USTF0_20260121
["timestamp","ask_amount","ask_price","bid_price","bid_amount"]
[1769001939677,0.16425785,2937.0,2936.2,0.00511281]
[1769001945983,0.1705,2935.7,2935.3,1.81538541]
[1769001946176,1.894,2936.1,2934.1,0.14873914]
[1769001946483,0.17051,2935.4,2934.1,0.14873914]
[1769001946987,0.17051,2935.3,2934.1,0.1515161]
[1769001947182,0.00420746,2935.4,2934.5,0.00511281]
[1769001947382,0.17053,2935.1,2934.5,0.00511281]
[1769001949692,0.00420746,2935.4,2933.2,0.14873914]
[1769001949895,0.81969566,2935.3,2933.2,0.14873914]
[1769001950085,0.27862606,2935.4,2933.2,0.14873914]
[1769001950283,0.17055,2934.7,2933.2,0.14873914]
[1769001950882,0.17055,2934.7,2933.2,0.15122771]
[1769001952887,0.17055,2934.7,2932.1,0.27280437]
[1769001952888,0.1706,2933.9,2932.3,0.14873914]
[1769001953091,0.00511281,2934.2,2932.3,0.14873914]
[1769001953984,0.00511281,2934.2,2932.3,0.1523864]
[1769001954490,0.17061,2933.6,2932.3,0.1523864]
[1769001956700,0.00511281,2934.2,2932.3,0.1523864]
[1769001957088,0.00511281,2934.2,2932.3,0.3230764]
[1769001957281,0.00511281,2934.2,2932.4,0.14873914]
[1769001958991,0.17062,2933.5,2932.4,0.14873914]
[1769001963195,0.17569281,2934.2,2932.4,0.14873914]
[1769001963693,0.17569281,2934.2,2932.5,0.15951119]
[1769001964092,0.17569281,2934.2,2932.6,0.15951119]
[1769001964593,0.17569281,2934.2,2932.7,40.95951119]
[1769001964594,0.00511281,2934.2,2932.7,40.95951119]
[1769001964898,0.00511281,2934.2,2932.8,0.15951119]
[1769001965394,0.00511281,2934.2,2933.0,0.33016119]
[1769001965598,0.00511281,2934.2,2933.1,0.15951119]
[1769001967098,0.17055,2934.7,2933.5,0.15951119]
[1769001968197,0.00420746,2935.4,2933.5,0.15951119]
[1769001968502,0.17052,2935.2,2933.5,0.15951119]
[1769001970002,0.00511281,2934.6,2932.2,0.15951119]
[1769001970396,0.17061,2933.6,2932.3,0.16315845]
[1769001970697,0.00511281,2934.6,2932.3,0.16315845]
[1769001970698,0.17062,2933.5,2932.3,0.16315845]
[1769001973893,0.17059,2934.1,2932.3,0.16315845]
[1769001974899,0.17064,2933.1,2932.3,0.00364726]
[1769001975099,0.17065,2933.0,2932.3,0.00364726]
[1769001975507,0.00511281,2932.9,2932.3,0.00364726]
[1769001976807,0.00511281,2932.9,2931.8,0.15951119]
[1769001977900,0.00511281,2932.9,2931.8,0.16382461]
[1769001978505,0.00511281,2932.9,2930.9,2.56351449]
[1769001978701,0.17072,2931.7,2930.9,0.1481077]
[1769001979009,0.17072,2931.7,2929.8,0.17083]
[1769001979010,0.17073,2931.6,2930.0,0.1481077]
[1769001979210,0.17074,2931.5,2930.2,0.1481077]
[1769001979709,0.00511281,2931.1,2930.2,0.15123844]
[1769001980903,0.17069,2932.3,2930.3,0.1481077]
[1769001981210,0.17069,2932.2,2930.5,0.1481077]
[1769001982105,0.17069,2932.2,2931.2,0.1481077]
[1769001984322,0.00321164,2933.1,2931.1,0.00511281]
[1769001984613,0.17071,2931.9,2931.1,0.15322051]
[1769001987815,0.17068,2932.5,2931.1,0.15322051]
[1769001989611,0.17068,2932.4,2931.1,0.15322051]
[1769001990718,0.00321164,2933.1,2931.1,0.15322051]
[1769001990719,0.17065,2933.0,2931.1,0.15322051]
[1769001990920,0.17065,2932.9,2931.1,0.15322051]
[1769001991217,0.17065,2932.9,2931.3,0.1481077]
[1769001991917,0.00321164,2933.1,2931.6,0.1481077]
[1769001992314,0.00321164,2933.1,2931.7,0.3188277]
[1769001992613,0.17062,2933.5,2931.8,0.1481077]
[1769001993414,0.17452911,2933.5,2931.8,0.1481077]
[1769001994017,0.17452911,2933.5,2932.0,0.1481077]
[1769001995527,0.17452911,2933.5,2931.8,5.83040679]
[1769001996724,0.17452911,2933.5,2931.8,2.41540679]
[1769001997330,0.17452911,2933.5,2932.0,0.1481077]
[1769001999327,0.17452911,2933.5,2932.1,0.1481077]
[1769002000931,0.00390911,2933.5,2932.3,0.1481077]
[1769002001126,0.00390911,2933.5,2932.3,0.151943]
[1769002001725,0.00390911,2933.5,2932.6,0.00511281]
[1769002002129,0.00390911,2933.5,2932.6,0.15322051]
[1769002012526,0.00390911,2933.5,2932.7,9.481]
[1769002013530,0.00390911,2933.5,2932.7,9.62603046]
[1769002013730,0.00390911,2933.5,2932.8,0.14503046]
[1769002013928,0.1706,2933.8,2932.8,0.14503046]
[1769002015031,0.17415277,2933.8,2932.8,0.14503046]
[1769002017626,0.00355277,2933.8,2932.8,0.14503046]
[1769002017826,1.25716121,2935.6,2932.7,9.481]
[1769002017827,0.17055,2934.7,2933.0,0.14138011]
[1769002018031,0.17055,2934.7,2933.1,0.14138011]
[1769002018230,0.17055,2934.7,2933.2,0.14138011]
[1769002018426,0.12861911,2935.4,2933.2,0.14138011]
[1769002018630,0.17052,2935.2,2933.5,0.14138011]
[1769002018834,0.1741053,2935.2,2933.6,0.14138011]
[1769002019036,0.1741053,2935.2,2933.8,0.14138011]
[1769002019234,0.17053,2935.1,2933.8,2.5567869]
[1769002020635,0.17053,2935.1,2933.8,0.14138011]
[1769002021034,0.17053,2935.1,2934.2,0.00511281]
[1769002021938,0.17054,2934.9,2934.2,0.00511281]
[1769002022139,0.12324044,2934.9,2933.2,2.41540679]
[1769002022334,0.17059,2934.1,2932.8,0.14138011]
[1769002022636,0.17059,2934.0,2932.8,0.14138011]
[1769002024935,0.17062,2933.4,2932.3,0.14521541]
[1769002025140,0.17063,2933.3,2932.3,0.14521541]
[1769002025330,0.17064,2933.2,2932.3,0.14521541]
[1769002025535,0.12205089,2933.7,2932.3,0.0038353]
[1769002025842,0.17064,2933.2,2932.3,0.0038353]
[1769002026933,0.00511281,2933.3,2931.3,0.14138011]
[1769002026934,0.12821819,2933.3,2931.3,0.14138011]
[1769002027136,0.12310538,2933.1,2931.3,0.14138011]
[1769002027634,0.17068,2932.5,2931.3,0.14138011]
[1769002027838,0.17326638,2932.5,2931.3,0.14524313]
[1769002028242,0.17326638,2932.5,2931.6,0.00511281]
[1769002030346,0.17068,2932.4,2931.6,0.00511281]
[1769002034955,0.17065,2932.9,2931.6,0.14649292]
[1769002035258,0.00511281,2933.3,2931.6,0.14649292]
[1769002036148,0.0084867,2933.3,2931.6,0.14649292]
[1769002036350,0.17067,2932.6,2931.6,0.00511281]
[1769002037248,0.17068,2932.5,2931.6,0.00511281]
[1769002041361,0.17069,2932.4,2931.6,0.00511281]
[1769002045672,0.11997719,2932.9,2931.3,0.00386302]
[1769002045969,0.17073,2931.7,2931.3,3.02e-06]
[1769002046161,0.11997719,2932.2,2930.3,0.14676166]
[1769002046756,0.17075,2931.3,2930.3,0.14676166]
[1769002046961,0.00511281,2931.5,2929.8,1.02662653]
[1769002047259,0.00511281,2931.5,2929.8,1.02959448]
[1769002047460,0.00511281,2931.5,2930.4,0.00340861]
[1769002048270,0.17071,2931.9,2930.6,0.14676166]
[1769002049368,0.00511281,2931.5,2930.6,0.14676166]
[1769002050156,0.17071,2931.9,2930.6,0.14676166]
[1769002050762,0.17068,2932.5,2930.6,0.14676166]
[1769002050967,0.17068,2932.5,2930.7,0.14676166]
[1769002051163,0.17068,2932.5,2930.8,0.14676166]
[1769002051365,0.17068,2932.5,2930.9,0.14676166]
[1769002052858,0.17068,2932.5,2931.1,0.14676166]
[1769002057361,0.17064,2933.1,2931.2,3.799]
[1769002057568,0.17064,2933.1,2931.5,0.14676166]
[1769002057871,0.17064,2933.1,2932.0,0.14676166]
[1769002058061,0.17064,2933.1,2932.0,0.15015128]
[1769002062772,0.17066,2932.8,2932.0,0.00338962]
[1769002068581,0.17066,2932.8,2932.0,0.15244068]
[1769002073479,0.17066,2932.8,2932.0,0.00338962]
[1769002082487,0.00511281,2932.7,2932.1,2.55393762]
[1769002082792,0.00337389,2933.3,2932.2,0.13853083]
[1769002082990,0.00337389,2933.3,2932.4,2.55393762]
[1769002083188,0.00337389,2933.3,2932.5,0.13853083]
[1769002083485,0.1706,2933.9,2932.5,0.13853083]
[1769002083691,0.1706,2933.9,2932.7,2.41540679]
[1769002084085,0.1706,2933.9,2932.8,2.41540679]
[1769002084280,0.1706,2933.9,2932.7,2.41540679]
[1769002084688,0.17359349,2933.9,2932.7,2.55393762]
[1769002085198,0.1706,2933.8,2932.7,2.41540679]
[1769002085494,0.00299349,2933.9,2932.0,6.71451018]
[1769002085495,0.17064,2933.2,2932.0,6.71451018]
[1769002085692,0.17064,2933.2,2932.0,2.41879641]
[1769002085889,0.17064,2933.2,2932.0,2.55732724]
[1769002087190,0.17064,2933.2,2932.1,0.13853083]
[1769002087493,0.17064,2933.2,2932.2,0.13853083]
[1769002087692,0.17064,2933.2,2932.0,2.41879641]
[1769002088194,0.00511281,2932.9,2932.0,2.41879641]
[1769002088396,0.00511281,2932.9,2932.1,0.13853083]
[1769002088697,0.00511281,2932.9,2932.1,2.55393762]
[1769002089897,0.00511281,2932.9,2932.2,0.13853083]
[1769002090791,0.17064,2933.2,2932.2,0.13853083]
[1769002090997,0.17064,2933.2,2932.3,0.13853083]
[1769002092592,0.17064,2933.2,2932.4,0.13853083]
[1769002093888,0.17061,2933.6,2932.4,0.13853083]
[1769002094198,0.14646647,2934.8,2932.9,0.13853083]
[1769002094598,0.14646647,2934.8,2933.0,0.13853083]
[1769002094794,0.14646647,2934.8,2933.6,0.00511281]
[1769002094988,0.17057,2934.4,2933.6,0.00511281]
[1769002095396,0.15040066,2934.8,2933.6,0.00511281]
[1769002095993,0.31496425,2935.8,2933.7,0.14559689]
[1769002096195,0.14447425,2935.6,2933.7,0.14559689]
[1769002096497,0.14447425,2935.2,2933.6,7.67111281]
[1769002096700,0.14447425,2935.1,2933.6,7.67111281]
[1769002096895,0.14447425,2935.7,2933.7,0.14559689]
[1769002097105,0.14860516,2935.7,2933.7,0.14559689]
[1769002097493,0.31497425,2935.6,2934.4,0.00511281]
[1769002097799,0.14447425,2935.5,2934.4,0.00864826]
[1769002100500,0.31498425,2935.5,2934.4,0.00864826]
[1769002100702,0.14447425,2935.4,2934.4,0.00864826]
[1769002101393,0.31499425,2935.2,2933.6,0.14559689]
[1769002102089,0.17052,2935.2,2933.6,0.14559689]
[1769002102501,0.17052,2935.2,2933.6,0.14994796]
[1769002102691,0.17052,2935.2,2934.1,0.00511281]
[1769002105304,0.17052,2935.2,2934.1,0.1507097]
[1769002107104,0.17462091,2935.7,2934.1,0.1507097]
[1769002107604,0.31497425,2935.6,2934.1,0.1507097]
[1769002108402,0.14447425,2935.5,2934.1,0.1507097]
[1769002109998,0.14447425,2935.4,2934.1,0.00511281]
[1769002111001,0.14447425,2935.0,2934.1,0.00511281]
[1769002111801,0.31500425,2935.0,2934.1,0.00511281]
[1769002115195,0.17054,2934.9,2934.1,0.00511281]
[1769002115399,0.14447425,2935.0,2933.6,9.48235107]
[1769002116602,0.17056,2934.5,2934.0,0.00511281]
[1769002121500,0.31503425,2934.5,2933.6,9.48235107]
[1769002121695,0.17057,2934.3,2933.6,9.48235107]
[1769002128509,0.8531891,2934.8,2933.6,9.48235107]
[1769002128710,1.00485598,2935.3,2933.7,0.14694271]
[1769002129009,0.17054,2934.8,2933.7,0.14694271]
[1769002129204,0.17055,2934.7,2933.6,9.48235107]
[1769002129405,0.17055,2934.7,2933.9,0.00511281]
[1769002131020,1.00485598,2934.7,2933.9,0.00511281]
[1769002131704,0.00511281,2934.6,2933.6,3.80335107]
[1769002132107,0.17057,2934.4,2933.6,3.80335107]
[1769002134312,0.17057,2934.4,2933.6,0.00435107]
[1769002138916,0.17058,2934.2,2933.6,0.00435107]
[1769002139218,0.17059,2934.0,2933.6,0.00435107]
[1769002139420,0.17059,2934.0,2933.0,2.41540679]
[1769002140314,0.17059,2934.0,2933.0,2.41818991]
[1769002140511,0.17059,2934.0,2933.1,2.41540679]
[1769002140710,0.17059,2934.0,2933.0,2.41818991]
[1769002143112,0.17059,2934.0,2933.2,0.00511281]
[1769002146023,0.1706,2933.9,2933.2,0.00511281]
[1769002152922,0.1706,2933.8,2933.2,0.00511281]
[1769002153128,0.17061,2933.7,2933.0,0.00278312]
[1769002164647,0.17061,2933.7,2933.1,0.00511281]
[1769002167340,0.17063,2933.4,2933.0,0.00278312]
[1769002167533,0.17063,2933.4,2932.8,2.41540679]
[1769002167727,0.17063,2933.3,2932.6,2.41540679]
[1769002168432,0.17468613,2933.3,2932.6,2.41856815]
[1769002169337,0.17064,2933.2,2932.6,0.00316136]
[1769002175144,0.17064,2933.2,2932.7,0.8531891]
[1769002176147,0.14395889,2934.3,2932.8,0.14855869]
[1769002176344,0.17061,2933.7,2933.3,0.8531891]
[1769002176839,0.14395889,2934.3,2933.0,1.00155033]
[1769002177043,0.17058,2934.2,2933.0,1.00155033]
[1769002177237,0.17500659,2934.2,2933.1,0.14855869]
[1769002177846,0.17500659,2934.2,2933.2,0.14855869]
[1769002179044,0.00511281,2934.6,2933.2,0.14855869]
[1769002179247,0.17058,2934.2,2933.2,0.14855869]
[1769002179439,0.00511281,2934.6,2933.2,0.14855869]
[1769002179635,0.00511281,2934.6,2933.4,1.00155033]
[1769002179939,0.17058,2934.2,2933.4,1.00155033]
[1769002180249,0.00511281,2934.6,2933.4,1.00155033]
[1769002180748,0.17058,2934.2,2933.4,1.00155033]
[1769002180950,0.00511281,2934.6,2933.7,0.00340861]
[1769002181149,0.17058,2934.2,2933.7,0.00340861]
[1769002187251,0.007769,2934.6,2933.7,0.00340861]
[1769002189148,0.14115075,2935.5,2933.8,3.94477274]
[1769002189351,0.14115075,2935.5,2933.9,0.99876438]
[1769002189551,0.17052,2935.3,2933.9,3.41417117]
[1769002190353,0.00511281,2934.9,2933.9,0.99876438]
[1769002195956,0.00511281,2934.9,2933.9,4.79776438]
[1769002197156,0.00511281,2934.9,2933.7,2.4188154]
[1769002197352,0.00511281,2934.9,2933.8,9.477]
[1769002198550,0.17565281,2934.9,2933.9,0.14567998]
[1769002202258,0.17054,2934.8,2933.9,0.14567998]
[1769002202555,0.15664909,2934.9,2933.7,0.00340861]
[1769002202763,0.17058,2934.3,2933.7,0.00340861]
[1769002202961,0.17058,2934.2,2933.7,0.00340861]
[1769002203162,0.17058,2934.2,2933.1,9.477]
[1769002203461,0.17058,2934.2,2933.1,11.89240679]
[1769002203962,0.17061,2933.7,2932.7,5.62945375]
[1769002204149,0.17061,2933.7,2932.7,2.56108677]
[1769002204355,0.17061,2933.6,2932.6,2.41856815]
[1769002204760,0.00511281,2933.4,2932.6,0.00316136]
[1769002205460,0.15153628,2934.4,2933.0,0.85299164]
[1769002205666,0.17059,2934.1,2933.1,0.14567998]
[1769002205957,0.17055,2934.7,2933.1,0.14567998]
[1769002206360,0.17055,2934.7,2933.4,0.85299164]
[1769002206664,0.00511281,2934.2,2933.4,0.99867162]
[1769002206866,0.17055,2934.7,2933.4,0.99867162]
[1769002207164,0.17055,2934.7,2933.5,0.14567998]
[1769002207664,0.15153628,2935.2,2933.8,0.85299164]
[1769002207856,0.17487173,2935.3,2934.2,0.85299164]
[1769002208260,0.17487173,2935.3,2933.9,0.14567998]
[1769002208457,0.15589801,2935.3,2933.6,2.41540679]
[1769002208663,0.17054,2934.9,2933.6,9.478]
[1769002210267,0.17054,2934.9,2933.6,11.89340679]
[1769002210459,0.17054,2934.9,2933.7,40.8]
[1769002213469,0.17054,2934.9,2933.7,44.599]
[1769002214571,0.17054,2934.9,2933.7,3.799]
[1769002214770,0.15153628,2935.0,2933.7,3.799]
[1769002215070,0.15153628,2934.9,2933.3,3.799]
[1769002215271,0.15153628,2934.9,2933.3,13.235]
[1769002216469,0.17058,2934.3,2933.3,13.235]
[1769002216768,0.17058,2934.3,2933.3,9.436]
[1769002217473,0.15153628,2934.9,2933.5,0.99292787]
[1769002217668,0.17054,2934.9,2933.5,0.99292787]
[1769002217870,0.17054,2934.9,2933.9,0.85299164]
[1769002218072,0.17054,2934.9,2933.9,0.99292787]
[1769002218575,0.17054,2934.9,2934.0,0.13993623]
[1769002220574,0.00511281,2934.7,2934.0,0.13993623]
[1769002220774,0.17054,2934.9,2934.2,0.00511281]
[1769002223772,0.00436173,2935.3,2934.2,0.00511281]
[1769002224476,0.17054,2934.9,2934.2,0.00511281]
[1769002224680,0.00436173,2935.3,2934.2,0.00511281]
[1769002224879,0.17054,2934.9,2934.2,0.00511281]
[1769002232085,0.00436173,2935.3,2934.2,0.00511281]
[1769002232385,0.17488173,2935.3,2934.2,0.00511281]
[1769002232574,0.17052,2935.2,2934.2,0.00511281]
[1769002234174,0.00511281,2935.0,2934.2,0.00511281]
[1769002236794,0.15178325,2935.0,2934.1,2.41540679]
[1769002237088,0.85810445,2935.0,2933.6,3.799]
[1769002237292,0.97376857,2935.0,2933.3,0.13993623]
[1769002237693,0.17057,2934.4,2933.3,0.13993623]
[1769002238887,0.17057,2934.4,2933.5,0.13993623]
[1769002239093,0.17057,2934.4,2933.8,0.13993623]
[1769002241500,0.17057,2934.4,2933.4,10.46993239]
[1769002242602,0.17057,2934.4,2933.5,0.13993623]
[1769002243302,0.17057,2934.4,2933.7,0.85299616]
[1769002248102,0.17057,2934.4,2933.7,3.28119935]
[1769002249706,0.00436173,2935.3,2934.7,0.85299616]
[1769002249891,0.00436173,2935.3,2934.7,0.00274678]
[1769002250099,0.17051,2935.5,2934.7,0.00274678]
[1769002250906,0.17051,2935.5,2934.7,0.85574294]
[1769002251101,0.17422332,2935.5,2934.7,0.85574294]
[1769002252708,0.17422332,2935.5,2934.7,1.0055984]
[1769002255009,0.17422332,2935.5,2934.8,0.14985546]
[1769002255404,0.17422332,2935.5,2934.7,0.85574294]
[1769002255601,0.17422332,2935.5,2934.7,0.00274678]
[1769002255804,1.02721948,2935.5,2934.7,0.00274678]
[1769002256000,0.17051,2935.4,2934.7,0.00274678]
[1769002258310,0.17051,2935.4,2934.1,1.2921361]
[1769002258311,0.17055,2934.7,2934.1,1.2921361]
[1769002258507,0.17055,2934.7,2933.8,0.00511281]
[1769002259213,0.17055,2934.7,2933.8,0.00819342]
[1769002260511,0.17056,2934.5,2933.8,0.00819342]
[1769002262512,0.85299616,2934.3,2933.8,3.42e-06]
[1769002262723,0.85299616,2934.3,2933.3,0.1424897]
[1769002263213,0.85299616,2934.0,2933.1,9.476]
[1769002263717,0.85299616,2934.0,2933.3,2.81e-06]
[1769002264218,0.1706,2933.9,2933.3,2.81e-06]
[1769002264916,0.17568281,2934.4,2933.5,0.1424897]
[1769002265717,0.17568281,2934.4,2933.7,0.99548586]
[1769002265917,0.17568281,2934.4,2933.8,0.1424897]
[1769002266117,0.85299616,2935.2,2934.0,0.1424897]
[1769002266318,0.17057,2934.4,2933.5,0.1424897]
[1769002266714,0.17057,2934.3,2933.5,0.1424897]
[1769002267018,0.1706,2933.8,2933.3,2.81e-06]
[1769002268109,0.17061,2933.7,2933.3,2.81e-06]
[1769002268317,0.17061,2933.7,2933.1,0.00255959]
[1769002269613,1.25675572,2934.8,2933.1,0.00255959]
[1769002269816,0.17061,2933.7,2933.1,0.00255959]
[1769002270209,6.449,2934.7,2933.1,0.00255959]
[1769002270518,1.13463079,2934.6,2932.7,0.1424897]
[1769002270718,0.17062,2933.5,2932.7,0.1424897]
[1769002270919,0.17062,2933.4,2932.7,0.1424897]
[1769002271418,0.00511281,2933.3,2932.7,0.14542001]
[1769002271916,0.17064,2933.2,2932.7,0.00293031]
[1769002272121,0.00511281,2933.3,2931.9,0.1424897]
[1769002272317,0.17066,2932.8,2931.9,0.1424897]
[1769002273113,0.17066,2932.8,2931.9,0.1453964]
[1769002273621,0.17066,2932.8,2932.1,0.00511281]
[1769002277421,0.17066,2932.8,2932.1,0.14232118]
[1769002277624,0.00511281,2933.3,2932.1,0.14232118]
[1769002278023,0.00511281,2933.3,2932.2,0.13720837]
[1769002278921,0.17064,2933.2,2932.2,0.13720837]
[1769002281226,0.17064,2933.1,2932.2,0.13720837]
[1769002281431,0.17065,2933.0,2932.2,0.13720837]
[1769002283031,0.00511281,2933.3,2932.1,3.80411281]
[1769002283032,0.17065,2932.9,2932.1,3.80411281]
[1769002283931,0.00511281,2933.3,2932.1,0.00511281]
[1769002284135,0.00511281,2933.3,2932.1,0.14232118]
[1769002284629,0.17069,2932.4,2932.1,1.18e-06]
[1769002284831,0.17069,2932.4,2931.9,3.8019067]
[1769002286237,0.17069,2932.3,2931.9,0.0029067]
[1769002286438,0.17069,2932.3,2931.8,9.481]
[1769002287029,0.17069,2932.3,2931.3,0.13720837]
[1769002287432,0.17069,2932.3,2931.3,0.14105949]
[1769002287634,0.1707,2932.1,2931.3,0.00385112]
[1769002288136,0.17071,2932.0,2931.3,0.00385112]
[1769002288841,0.17071,2931.9,2931.3,0.00385112]
[1769002289841,0.17073,2931.7,2930.9,0.1]
[1769002290429,0.17074,2931.4,2930.9,0.1]
[1769002290836,0.17074,2931.4,2930.9,0.10330389]
[1769002291136,0.17075,2931.3,2930.4,9.61920837]
[1769002291939,0.17075,2931.3,2930.4,9.482]
[1769002292141,0.17076,2931.1,2930.4,9.4863834]
[1769002292443,0.00285904,2931.3,2930.4,0.0043834]
[1769002292644,0.17077,2930.9,2930.5,0.00511281]
[1769002292835,0.17077,2930.9,2930.4,0.0043834]
[1769002293230,0.17077,2930.9,2929.7,11.2898529]
[1769002293231,0.17077,2930.9,2929.7,0.13720837]
[1769002294043,0.17077,2930.9,2929.7,1.94406127]
[1769002294344,0.1708,2930.4,2929.7,0.0034921]
[1769002294546,0.00285904,2931.3,2928.9,0.13720837]
[1769002294547,0.17082,2930.1,2928.9,0.13720837]
[1769002295045,0.00511281,2929.8,2928.9,0.13720837]
[1769002295541,0.00511281,2929.8,2928.9,0.13975188]
[1769002299244,0.00511281,2929.8,2928.9,0.00025529]
[1769002299440,0.17087,2929.2,2928.1,0.13720837]
[1769002300038,0.17088,2929.1,2928.1,0.13720837]
[1769002300442,0.1744481,2929.1,2928.1,0.13974034]
[1769002301241,0.1744481,2929.1,2926.6,0.13720837]
[1769002301242,6.0035681,2929.1,2926.6,0.13720837]
[1769002301445,0.0035681,2929.1,2926.6,0.13720837]
[1769002301944,0.00512181,2928.1,2926.6,0.13720837]
[1769002302137,0.17096,2927.8,2926.6,0.13720837]
[1769002302343,0.17096,2927.7,2926.6,0.14126094]
[1769002302740,0.00512181,2928.1,2926.6,0.14126094]
[1769002304556,0.00512181,2928.1,2926.7,0.13720837]
[1769002306250,0.00512181,2928.1,2926.9,0.14251929]
[1769002306851,0.00512181,2928.1,2927.0,0.14251929]
[1769002308958,0.0035681,2929.1,2927.0,0.14251929]
[1769002309458,0.0035681,2929.1,2927.2,0.14251929]
[1769002309756,0.0035681,2929.1,2927.3,0.14251929]
[1769002311363,0.0035681,2929.1,2926.9,44.214]
[1769002311364,0.0035681,2929.1,2927.5,0.14251929]
[1769002311661,0.0035681,2929.1,2927.7,0.14251929]
[1769002311859,0.17083,2929.9,2927.9,0.14251929]
[1769002312470,0.17083,2929.9,2928.1,0.14251929]
[1769002312860,0.17508637,2929.9,2928.1,0.14251929]
[1769002313560,0.00512181,2929.3,2928.3,0.14251929]
[1769002314462,0.00425637,2929.9,2928.3,0.14251929]
[1769002314658,0.00425637,2929.9,2928.6,0.14251929]
[1769002314860,0.17508637,2929.9,2928.6,0.14251929]
[1769002317959,0.00425637,2929.9,2928.6,0.14251929]
[1769002318469,0.17086,2929.5,2928.5,0.00512181]
[1769002318669,0.00425637,2929.9,2928.5,0.00512181]
[1769002318869,0.17086,2929.4,2928.5,0.00512181]
[1769002320867,0.17086,2929.4,2928.5,0.1431819]
[1769002321065,0.00425637,2929.9,2928.5,0.1431819]
[1769002321374,0.17083,2929.8,2928.5,0.1431819]
[1769002322664,0.17084,2929.7,2928.5,0.1431819]
[1769002322867,0.17085,2929.5,2928.5,0.1431819]
[1769002323068,0.17086,2929.4,2928.5,0.1431819]
[1769002326377,0.00425637,2929.9,2928.5,0.1431819]
[1769002326577,0.17508637,2929.9,2928.5,0.1431819]
[1769002328970,0.1708,2930.4,2928.6,2.39939029]
[1769002329176,0.1708,2930.4,2928.9,0.13806009]
[1769002329682,0.1708,2930.4,2929.0,0.13806009]
[1769002329875,6.449,2931.4,2929.1,0.13806009]
[1769002330075,6.449,2931.4,2929.3,0.13806009]
[1769002330076,0.17078,2930.8,2929.3,0.13806009]
[1769002330276,0.17078,2930.8,2929.4,0.13806009]
[1769002330675,0.17078,2930.8,2929.8,0.1431819]
[1769002333280,0.00393711,2931.4,2929.8,0.1431819]
[1769002334383,0.17078,2930.7,2929.8,0.1431819]
[1769002335480,0.00512181,2930.5,2929.8,1.81e-06]
[1769002335674,0.00512181,2930.5,2929.3,3.93886573]
[1769002335675,0.17084,2929.7,2929.3,3.43970181]
[1769002335879,0.00512181,2930.5,2929.1,5.28e-06]
[1769002336074,0.01176336,2930.5,2929.1,5.28e-06]
[1769002336283,0.17087,2929.2,2929.1,5.28e-06]
[1769002336486,0.17088,2929.1,2928.0,0.13986573]
[1769002336885,0.17088,2929.1,2928.4,0.00512181]
[1769002337088,0.00512181,2928.8,2928.4,0.00512181]
[1769002337386,0.00442584,2928.8,2928.4,0.14910022]
[1769002337582,0.17088,2929.1,2928.4,0.00923449]
[1769002338583,0.17472507,2929.1,2928.4,0.00923449]
[1769002338782,1.22065581,2930.4,2928.4,0.14910022]
[1769002338991,0.17084,2929.7,2928.4,0.14910022]
[1769002339190,0.17085,2929.6,2928.4,0.14910022]
[1769002339887,0.17497639,2929.6,2928.4,0.14910022]
[1769002342793,3.11865581,2930.8,2928.4,0.14910022]
[1769002342994,7.59153768,2930.7,2928.4,0.14910022]
[1769002343294,0.17082,2930.0,2928.4,0.14910022]
[1769002343491,0.17083,2929.9,2928.6,0.13986573]
[1769002343987,0.17084,2929.7,2928.6,0.13986573]
[1769002344192,0.00512181,2929.5,2928.6,0.13986573]
[1769002345896,0.17597181,2929.5,2928.6,0.13986573]
[1769002348504,0.00512181,2929.5,2928.4,0.00923449]
[1769002348691,0.00512181,2929.5,2928.4,4.49e-06]
[1769002348892,0.17089,2928.9,2928.4,0.13987022]
[1769002349298,0.17089,2928.9,2928.4,4.49e-06]
[1769002349702,0.17089,2928.9,2927.9,0.13986573]
[1769002350790,0.17089,2928.9,2927.9,0.14397031]
[1769002358507,0.17089,2928.9,2928.0,0.13986573]
[1769002359609,0.17089,2928.9,2928.1,0.13986573]
[1769002361402,0.17089,2928.9,2928.2,0.13986573]
[1769002365210,0.17089,2928.9,2928.1,2.49939029]
[1769002365517,0.17092,2928.3,2928.1,1.9e-06]
[1769002365706,0.17092,2928.3,2927.9,0.00410458]
[1769002365903,0.17093,2928.2,2927.9,4.58e-06]
[1769002366113,0.17093,2928.2,2927.8,0.00512181]
[1769002366916,0.17093,2928.1,2927.5,0.1]
[1769002367219,0.17093,2928.1,2927.5,0.10300724]
[1769002369118,0.17093,2928.1,2927.5,0.00300724]
[1769002369416,0.17093,2928.1,2927.5,0.14451151]
[1769002375219,0.1709,2928.6,2927.5,0.14451151]
[1769002375620,6.449,2929.3,2927.5,0.14451151]
[1769002375928,0.17089,2928.8,2927.7,0.14150427]
[1769002376416,0.00512181,2929.5,2928.4,0.14150427]
[1769002377319,0.00512181,2929.5,2928.6,0.14150427]
[1769002379015,0.00350058,2929.9,2928.6,0.14150427]
[1769002380922,0.1708,2930.5,2929.0,0.00512181]
[1769002381119,0.1708,2930.5,2929.1,0.13709469]
[1769002381317,0.17076,2931.1,2929.1,0.13709469]
[1769002381620,0.17076,2931.1,2929.5,0.13709469]
[1769002381833,0.0034028,2931.1,2929.8,0.13709469]
[1769002382123,0.0034028,2931.1,2929.9,0.13709469]
[1769002385030,0.0034028,2931.1,2929.8,0.00239293]
[1769002385730,0.17078,2930.8,2929.8,0.00239293]
[1769002385921,0.17078,2930.8,2929.8,0.13948762]
[1769002388035,0.0034028,2931.1,2929.8,0.13948762]
[1769002388729,0.0034028,2931.1,2930.0,0.13709469]
[1769002389723,0.17077,2930.9,2929.9,3.25870181]
[1769002390726,0.15292536,2931.1,2929.8,0.00239293]
[1769002391120,0.17079,2930.6,2929.8,0.13948762]
[1769002393030,0.17079,2930.6,2929.8,0.00239293]
[1769002395434,0.17079,2930.6,2929.8,0.1507754]
[1769002396638,0.17081,2930.3,2929.8,0.00239293]
[1769002396931,0.17082,2930.1,2929.2,9.491]
[1769002397830,0.17082,2930.1,2929.2,9.49436545]
[1769002399231,0.17083,2929.9,2929.2,0.00336545]
[1769002401537,0.00512181,2929.8,2929.2,0.00336545]
[1769002402741,0.17596181,2929.8,2929.2,0.00336545]
[1769002402935,0.17596181,2929.8,2928.8,9.491]
[1769002402936,0.00512181,2929.8,2928.7,3.25870181]
[1769002403145,0.00512181,2929.8,1549.9,1.07696709]
[1769002403146,0.17092,2928.4,2927.2,0.24838247]
[1769002403532,0.17092,2928.4,2927.3,0.14838247]
[1769002404037,0.17367949,2928.4,2927.3,0.1514227]
[1769002404333,0.17095,2927.8,2927.3,0.00304023]
[1769002404527,0.17367949,2928.4,2927.3,0.1514227]
[1769002407238,1.898,2930.1,2927.3,0.1514227]